bitfinex/quotes_SOLUSD_20250528
["timestamp","ask_amount","ask_price","bid_price","bid_amount"]
[1748454423123,5.86721418,170.44,170.43,62.08]
[1748454423834,43.77786649,170.44,170.41,36.08]
[1748454424246,23.24273399,170.42,170.37,9.42]
[1748454424543,23.24273399,170.42,170.39,62.08]
[1748454425742,23.24273399,170.42,170.39,36.08]
[1748454425743,5.86820022,170.41,170.39,36.08]
[1748454425943,5.86820022,170.41,170.38,23.24273399]
[1748454426121,5.86820022,170.41,170.39,36.08]
[1748454427256,29.11058987,170.42,170.39,36.08]
[1748454427438,5.86785588,170.42,170.39,36.08]
[1748454427642,5.86785588,170.42,170.38,23.24273399]
[1748454427821,5.86785588,170.42,170.39,36.08]
[1748454429437,5.86785588,170.42,170.38,23.24273399]
[1748454429638,29.11058987,170.42,170.39,36.08]
[1748454429853,23.38489556,170.41,170.38,36.08]
[1748454430850,23.24273399,170.41,170.38,36.08]
[1748454431057,43.78022958,170.42,170.38,36.08]
[1748454431367,29.11058987,170.42,170.38,36.08]
[1748454431540,5.86785588,170.42,170.38,59.32273399]
[1748454432378,98.9,170.46,170.41,23.24273399]
[1748454432582,104.7665667,170.46,170.42,23.24273399]
[1748454433764,89.5,170.46,170.44,23.24273399]
[1748454433999,5.86591982,170.48,170.45,23.24273399]
[1748454434196,5.86591982,170.48,170.44,59.32273399]
[1748454434863,5.86591982,170.48,170.45,23.24273399]
[1748454435758,95.36522258,170.5,170.47,23.24273399]
[1748454435957,5.86522258,170.5,170.47,23.24273399]
[1748454436268,15.2849883,170.51,170.48,23.24273399]
[1748454436676,5.8649883,170.51,170.48,23.24273399]
[1748454436993,5.86444457,170.52,170.49,23.24273399]
[1748454437490,5.86444457,170.52,170.5,36.08]
[1748454437681,5.86407083,170.53,170.5,36.08]
[1748454437859,23.24273399,170.52,170.5,36.08]
[1748454438562,29.10680482,170.53,170.5,36.08]
[1748454438768,5.86407083,170.53,170.5,59.32273399]
[1748454439794,5.86372698,170.54,170.5,59.32273399]
[1748454440487,5.86372698,170.54,170.51,23.24273399]
[1748454441388,5.86372698,170.54,170.52,23.24273399]
[1748454441781,9.42,170.56,170.53,59.30273399]
[1748454442088,5.86235197,170.58,170.54,23.24273399]
[1748454442466,29.10508596,170.58,170.53,59.30273399]
[1748454443164,5.86235197,170.58,170.53,59.30273399]
[1748454443368,23.24273399,170.57,170.53,59.30273399]
[1748454443691,23.24273399,170.54,170.53,36.06]
[1748454443898,23.24273399,170.55,170.53,36.06]
[1748454444371,23.24273399,170.56,170.53,36.06]
[1748454444971,23.24273399,170.56,170.52,36.06]
[1748454445294,5.86338317,170.55,170.52,36.06]
[1748454445669,29.10611716,170.55,170.52,36.06]
[1748454449605,5.86338317,170.55,170.52,36.06]
[1748454450327,29.10589739,170.56,170.52,59.30273399]
[1748454450547,29.10589739,170.56,170.52,36.06]
[1748454451831,89.5,170.59,170.55,23.24273399]
[1748454452032,5.86242941,170.58,170.56,23.24273399]
[1748454453328,5.86166471,170.6,170.57,23.24273399]
[1748454453522,5.86166471,170.6,170.58,59.30273399]
[1748454454214,5.86166471,170.6,170.58,36.06]
[1748454455643,5.86132114,170.61,170.58,36.06]
[1748454456826,5.86063412,170.63,170.58,59.30273399]
[1748454457033,29.10336811,170.63,170.59,23.24273399]
[1748454457236,5.86063412,170.63,170.59,23.24273399]
[1748454457927,29.10336811,170.63,170.59,23.24273399]
[1748454458127,29.10336811,170.63,170.58,59.30273399]
[1748454458736,5.86063412,170.63,170.58,59.30273399]
[1748454458933,29.10336811,170.63,170.59,23.24273399]
[1748454460352,5.86063412,170.63,170.6,23.24273399]
[1748454461049,29.10336811,170.63,170.59,18.64964886]
[1748454461449,29.10336811,170.63,170.59,41.89238285]
[1748454461647,5.86063412,170.63,170.59,41.89238285]
[1748454461875,5.86063412,170.63,170.6,23.24273399]
[1748454462583,5.86063412,170.63,170.61,59.28273399]
[1748454462790,5.86063412,170.63,170.62,23.24273399]
[1748454462961,5.85994726,170.65,170.62,23.24273399]
[1748454464562,5.85926056,170.67,170.63,41.89238285]
[1748454464896,29.10199455,170.67,170.62,23.24273399]
[1748454465662,23.24273399,170.66,170.62,23.24273399]
[1748454465894,23.24273399,170.65,170.61,49.24273399]
[1748454466063,23.24273399,170.63,170.58,24.76853399]
[1748454466265,23.24273399,170.62,170.59,26.0]
[1748454466789,5.86132114,170.61,170.58,36.04]
[1748454467003,5.86132114,170.61,170.58,62.04]
[1748454467163,29.10405513,170.61,170.58,36.04]
[1748454467588,23.24273399,170.6,170.58,36.04]
[1748454468089,23.24273399,170.6,170.57,62.04]
[1748454468885,23.24273399,170.6,170.58,36.04]
[1748454468886,5.86200832,170.59,170.58,36.04]
[1748454470881,5.86166471,170.6,170.58,36.04]
[1748454473798,95.3607574,170.63,170.59,41.89238285]
[1748454473980,5.8607574,170.63,170.61,23.24273399]
[1748454474187,5.8607574,170.63,170.61,59.26273399]
[1748454474890,5.86026732,170.65,170.61,59.26273399]
[1748454475092,29.10300131,170.65,170.61,36.02]
[1748454476112,23.24273399,170.63,170.61,36.02]
[1748454478114,5.86097761,170.62,170.61,36.02]
[1748454481111,5.86029067,170.64,170.61,36.02]
[1748454481300,29.10302466,170.64,170.61,36.02]
[1748454481505,5.86029067,170.64,170.61,36.02]
[1748454481813,23.24273399,170.63,170.61,36.02]
[1748454482191,5.86097761,170.62,170.61,36.02]
[1748454483528,5.36097761,170.62,170.61,36.02]
[1748454484313,14.64986815,170.65,170.61,36.02]
[1748454484314,23.24273399,170.64,170.61,36.02]
[1748454484829,23.24273399,170.62,170.56,32.64273399]
[1748454485130,23.24273399,170.6,170.59,26.0]
[1748454485328,23.24273399,170.61,170.59,26.0]
[1748454485632,23.24273399,170.62,170.59,62.02]
[1748454485815,23.24273399,170.64,170.59,85.26273399]
[1748454486510,5.86063412,170.63,170.59,85.26273399]
[1748454487118,29.10336811,170.63,170.59,62.02]
[1748454487635,23.24273399,170.6,170.56,9.4]
[1748454487832,23.24273399,170.59,170.57,36.02]
[1748454488018,23.24273399,170.59,170.57,62.02]
[1748454488534,14.65354953,170.61,170.57,62.02]
[1748454488719,23.24273399,170.6,170.57,62.02]
[1748454488926,23.24273399,170.61,170.57,62.02]
[1748454489232,23.24273399,170.6,170.57,62.02]
[1748454490025,20.51462399,170.61,170.57,62.02]
[1748454490331,23.24273399,170.6,170.57,62.02]
[1748454490533,5.86200832,170.59,170.57,62.02]
[1748454490737,23.24273399,170.58,170.5,1.6291]
[1748454490919,23.24273399,170.56,170.52,18.64964886]
[1748454491237,20.51702913,170.59,170.52,18.64964886]
[1748454491238,0.14216157,170.58,170.52,18.64964886]
[1748454491442,23.24273399,170.56,170.53,36.02]
[1748454492828,29.10602584,170.56,170.53,36.02]
[1748454493343,29.10602584,170.56,170.52,18.64964886]
[1748454493522,29.10602584,170.56,170.53,36.02]
[1748454494936,23.24273399,170.55,170.53,36.02]
[1748454495141,23.24273399,170.54,170.5,18.64964886]
[1748454495347,23.24273399,170.54,170.51,36.02]
[1748454495689,23.24273399,170.55,170.51,36.02]
[1748454496957,5.86372698,170.54,170.5,41.89238285]
[1748454497163,5.86372698,170.54,170.52,36.02]
[1748454498053,5.86372698,170.54,170.51,26.0]
[1748454498254,5.86372698,170.54,170.52,36.02]
[1748454498840,5.86372698,170.54,170.51,26.0]
[1748454499040,5.86372698,170.54,170.52,36.02]
[1748454499771,5.86372698,170.54,170.51,62.02]
[1748454499962,23.24273399,170.53,170.49,49.24273399]
[1748454500159,23.24273399,170.53,170.49,23.24273399]
[1748454500364,5.86372698,170.54,170.52,26.0]
[1748454505671,29.10646097,170.54,170.52,26.0]
[1748454506475,89.5,170.56,170.53,59.26273399]
[1748454506646,89.5,170.56,170.54,41.89238285]
[1748454506847,5.86235197,170.58,170.54,41.89238285]
[1748454508182,23.24273399,170.59,170.55,23.24273399]
[1748454508183,5.86212991,170.59,170.55,23.24273399]
[1748454508359,5.86178445,170.6,170.57,23.24273399]
[1748454508560,5.86178445,170.6,170.58,23.24273399]
[1748454508976,5.86178445,170.6,170.56,36.02]
[1748454508977,5.86178445,170.6,170.57,23.24273399]
[1748454511193,29.1037116,170.62,170.58,23.24273399]
[1748454511489,29.1037116,170.62,170.59,36.02]
[1748454514074,23.24273399,170.61,170.59,36.02]
[1748454514273,23.24273399,170.6,170.59,36.02]
[1748454515197,29.1043987,170.6,170.59,36.02]
[1748454515715,5.86166471,170.6,170.59,36.02]
[1748454516181,4.86166471,170.6,170.59,36.02]
[1748454518806,28.1043987,170.6,170.56,36.02]
[1748454518988,23.24273399,170.58,170.52,10.9881]
[1748454519299,23.24273399,170.57,170.53,77.91238285]
[1748454519710,29.10508596,170.58,170.53,77.91238285]
[1748454519886,23.24273399,170.56,170.52,9.4]
[1748454520077,23.24273399,170.55,170.51,18.64964886]
[1748454520276,23.24273399,170.55,170.52,36.02]
[1748454520478,0.14216157,170.57,170.52,59.26273399]
[1748454520680,23.38489556,170.57,170.52,59.26273399]
[1748454521679,5.86303939,170.56,170.52,59.26273399]
[1748454523538,5.86200832,170.59,170.54,23.24273399]
[1748454523725,5.86200832,170.59,170.57,23.24273399]
[1748454523910,5.86200832,170.59,170.58,36.02]
[1748454524709,20.51537283,170.61,170.58,36.02]
[1748454524945,5.86132114,170.61,170.58,36.02]
[1748454525405,5.86132114,170.61,170.58,59.26273399]
[1748454526222,5.86132114,170.61,170.59,23.24273399]
[1748454526424,5.86108288,170.62,170.6,23.24273399]
[1748454526742,5.86063412,170.63,170.61,36.02]
[1748454526912,29.10336811,170.63,170.61,36.02]
[1748454528138,5.86063412,170.63,170.61,36.02]
[1748454529219,29.10336811,170.63,170.61,36.02]
[1748454529620,23.24273399,170.62,170.61,36.02]
[1748454530716,29.10336811,170.63,170.61,36.02]
[1748454531113,5.86063412,170.63,170.61,36.02]
[1748454536522,29.10336811,170.63,170.61,36.02]
[1748454538854,29.10336811,170.63,170.59,36.02]
[1748454540048,23.24273399,170.62,170.58,23.24273399]
[1748454540367,23.24273399,170.62,170.59,36.02]
[1748454541557,5.86063412,170.63,170.59,59.26273399]
[1748454541775,29.10336811,170.63,170.59,59.26273399]
[1748454543038,23.24273399,170.62,170.59,36.02]
[1748454543641,29.10405513,170.61,170.59,36.02]
[1748454544168,29.10405513,170.61,170.58,36.0]
[1748454544951,29.10405513,170.61,170.57,18.64964886]
[1748454545182,23.24273399,170.6,170.57,36.0]
[1748454545361,23.24273399,170.6,170.56,49.24273399]
[1748454545569,23.24273399,170.6,170.57,36.0]
[1748454546079,5.86200832,170.59,170.57,36.0]
[1748454548181,5.86166471,170.6,170.57,36.0]
[1748454551393,5.86166471,170.6,170.58,23.24273399]
[1748454551775,29.1037116,170.62,170.58,23.24273399]
[1748454552373,5.86097761,170.62,170.58,23.24273399]
[1748454554374,14.65144037,170.64,170.6,23.24273399]
[1748454554685,14.65144037,170.64,170.6,59.24273399]
[1748454556391,5.85994726,170.65,170.61,23.24273399]
[1748454557075,29.10268125,170.65,170.6,59.24273399]
[1748454557477,29.10268125,170.65,170.6,36.0]
[1748454557681,29.10268125,170.65,170.6,59.24273399]
[1748454558085,23.24273399,170.64,170.6,59.24273399]
[1748454558485,5.86063412,170.63,170.6,59.24273399]
[1748454562214,5.86029067,170.64,170.6,59.24273399]
[1748454563617,29.10233788,170.66,170.61,23.24273399]
[1748454563821,5.85960389,170.66,170.62,23.24273399]
[1748454564004,5.85960389,170.66,170.63,36.0]
[1748454565515,20.78933221,170.69,170.63,59.24273399]
[1748454565720,23.24273399,170.67,170.63,59.24273399]
[1748454566420,23.24273399,170.67,170.63,36.0]
[1748454566616,5.85960389,170.66,170.63,36.0]
[1748454567219,29.10233788,170.66,170.63,36.0]
[1748454569338,5.85960389,170.66,170.63,36.0]
[1748454570720,5.85960389,170.66,170.63,59.24273399]
[1748454572719,104.14454341,170.72,170.65,49.24273399]
[1748454572919,9.38,170.73,170.63,36.0]
[1748454572920,23.24273399,170.66,170.63,36.0]
[1748454573218,23.24273399,170.64,170.63,26.0]
[1748454574242,23.24273399,170.65,170.63,26.0]
[1748454574542,29.10287976,170.65,170.63,26.0]
[1748454574739,5.86014577,170.65,170.63,26.0]
[1748454574949,23.24273399,170.64,170.58,1.6165]
[1748454575161,23.24273399,170.61,170.57,9.38]
[1748454575453,0.14216157,170.64,170.57,9.38]
[1748454575454,23.24273399,170.6,170.57,35.98]
[1748454575617,0.14216157,170.63,170.57,61.98]
[1748454575819,23.24273399,170.63,170.58,23.24273399]
[1748454576043,20.51001392,170.65,170.6,23.24273399]
[1748454576344,23.24273399,170.64,170.61,35.98]
[1748454576711,5.86063412,170.63,170.61,35.98]
[1748454576913,23.24273399,170.62,170.61,35.98]
[1748454577152,23.24273399,170.62,170.59,35.98]
[1748454577333,23.24273399,170.6,170.58,35.98]
[1748454577842,23.24273399,170.61,170.58,35.98]
[1748454580743,29.1043824,170.61,170.58,35.98]
[1748454581665,29.1043824,170.61,170.57,49.24273399]
[1748454581851,29.1043824,170.61,170.58,35.98]
[1748454582139,29.1043824,170.61,170.59,35.98]
[1748454583921,5.86164841,170.61,170.59,35.98]
[1748454584225,29.1043824,170.61,170.59,35.98]
[1748454584734,29.1043824,170.61,170.58,35.98]
[1748454586030,23.24273399,170.59,170.54,1.6501]
[1748454586228,23.24273399,170.58,170.56,26.0]
[1748454586426,23.24273399,170.58,170.56,61.98]
[1748454586824,23.24273399,170.59,170.56,61.98]
[1748454587637,23.24273399,170.6,170.56,61.98]
[1748454588047,23.24273399,170.6,170.56,26.0]
[1748454588048,5.86200832,170.59,170.56,26.0]
[1748454588246,5.86200832,170.59,170.57,35.98]
[1748454593473,14.65330285,170.61,170.58,23.24273399]
[1748454593474,5.86132114,170.61,170.58,23.24273399]
[1748454594055,29.10405513,170.61,170.57,59.22273399]
[1748454595833,29.10405513,170.61,170.57,35.98]
[1748454596035,5.86200832,170.59,170.57,35.98]
[1748454596362,29.10474231,170.59,170.57,35.98]
[1748454597445,29.10474231,170.59,170.55,23.24273399]
[1748454597446,23.24273399,170.58,170.55,26.0]
[1748454597660,23.24273399,170.57,170.55,61.98]
[1748454598179,5.86269566,170.57,170.55,61.98]
[1748454598465,5.86247761,170.58,170.55,85.22273399]
[1748454600065,5.86200832,170.59,170.55,85.22273399]
[1748454600878,23.24273399,170.58,170.55,61.98]
[1748454601352,23.24273399,170.58,170.56,26.0]
[1748454601552,23.24273399,170.58,170.55,61.98]
[1748454601746,23.24273399,170.57,170.52,32.60273399]
[1748454601957,23.24273399,170.57,170.53,35.98]
[1748454602151,5.86303939,170.56,170.53,35.98]
[1748454602572,23.24273399,170.55,170.51,23.24273399]
[1748454602879,23.24273399,170.55,170.53,35.98]
[1748454604269,5.86372698,170.54,170.53,35.98]
[1748454605072,23.24273399,170.57,170.53,59.22273399]
[1748454605253,29.10508596,170.58,170.54,23.24273399]
[1748454605452,5.86235197,170.58,170.55,23.24273399]
[1748454605651,5.86235197,170.58,170.56,35.98]
[1748454606996,29.10508596,170.58,170.56,35.98]
[1748454614307,23.24273399,170.57,170.56,35.98]
[1748454614498,0.14216157,170.56,170.51,35.36]
[1748454614688,23.24273399,170.57,170.52,59.22273399]
[1748454615002,95.362042,170.59,170.55,23.24273399]
[1748454615181,5.862042,170.59,170.56,59.22273399]
[1748454615380,5.862042,170.59,170.56,35.98]
[1748454617608,23.24273399,170.57,170.51,9.36]
[1748454617783,23.24273399,170.55,170.52,35.98]
[1748454618789,23.24273399,170.55,170.51,9.36]
[1748454618790,23.24273399,170.55,170.53,35.98]
[1748454619689,5.86372698,170.54,170.53,35.98]
[1748454620387,5.86372698,170.54,170.52,35.98]
[1748454620590,5.86372698,170.54,170.5,49.24273399]
[1748454620591,29.10646097,170.54,170.5,49.24273399]
[1748454620790,29.10646097,170.54,170.52,35.98]
[1748454622511,29.10646097,170.54,170.51,35.98]
[1748454623817,23.24273399,170.53,170.48,49.24273399]
[1748454623981,23.24273399,170.53,170.48,23.24273399]
[1748454624187,23.24273399,170.53,170.49,35.98]
[1748454624691,43.76577843,170.54,170.49,59.22273399]
[1748454626211,5.86360023,170.55,170.53,23.24273399]
[1748454626415,5.86360023,170.55,170.53,59.22273399]
[1748454627394,5.86303939,170.56,170.53,59.22273399]
[1748454628815,29.10577338,170.56,170.53,35.98]
[1748454629320,5.86303939,170.56,170.53,35.98]
[1748454630524,5.86303939,170.56,170.53,59.22273399]
[1748454631927,95.36276513,170.57,170.53,59.22273399]
[1748454632103,95.36276513,170.57,170.54,23.24273399]
[1748454632104,89.5,170.57,170.54,23.24273399]
[1748454632304,9.36,170.58,170.56,23.24273399]
[1748454632625,5.86166471,170.6,170.57,35.98]
[1748454632831,29.1043987,170.6,170.57,35.98]
[1748454633624,23.24273399,170.59,170.57,35.98]
[1748454633929,29.10508596,170.58,170.57,35.98]
[1748454634311,29.10508596,170.58,170.55,35.98]
[1748454640142,23.24273399,170.56,170.53,26.0]
[1748454640439,23.24273399,170.55,170.53,26.0]
[1748454641132,23.24273399,170.54,170.48,32.60273399]
[1748454641341,89.5,170.57,170.48,9.36]
[1748454641342,23.24273399,170.53,170.48,9.36]
[1748454641507,89.78432314,170.57,170.45,24.87623399]
[1748454641508,23.24273399,170.5,170.45,24.87623399]
[1748454641711,23.24273399,170.5,170.45,1.6335]
[1748454641938,23.24273399,170.49,170.47,26.0]
[1748454642324,5.8657907,170.48,170.47,26.0]
[1748454642941,89.5,170.54,170.47,49.24273399]
[1748454643245,29.10680482,170.53,170.48,23.24273399]
[1748454643452,23.24273399,170.52,170.49,35.98]
[1748454644859,29.10739489,170.52,170.49,35.98]
[1748454645057,5.8646609,170.52,170.49,35.98]
[1748454646254,29.10739489,170.52,170.49,35.98]
[1748454649154,5.8646609,170.52,170.49,35.98]
[1748454649526,5.8646609,170.52,170.49,59.22273399]
[1748454654165,5.8646609,170.52,170.49,35.98]
[1748454657944,5.86407083,170.53,170.49,35.98]
[1748454658143,29.10680482,170.53,170.49,35.98]
[1748454665292,29.10680482,170.53,170.49,59.22273399]
[1748454665940,5.86303939,170.56,170.52,23.24273399]
[1748454666144,89.5,170.57,170.49,41.84533104]
[1748454666145,5.86235197,170.58,170.54,23.24273399]
[1748454666340,5.86235197,170.58,170.55,35.96]
[1748454666645,23.24273399,170.57,170.55,35.96]
[1748454666856,23.24273399,170.56,170.55,35.96]
[1748454668080,29.10577338,170.56,170.55,35.96]
[1748454668874,5.86303939,170.56,170.55,35.96]
[1748454669972,29.10577338,170.56,170.55,35.96]
[1748454671839,29.10577338,170.56,170.52,23.24273399]
[1748454671840,43.76337187,170.56,170.54,35.96]
[1748454672044,23.24273399,170.55,170.53,35.96]
[1748454672292,23.24273399,170.54,170.53,35.96]
[1748454673580,23.24273399,170.54,170.49,23.24273399]
[1748454673877,5.86407083,170.53,170.5,35.96]
[1748454674102,29.10680482,170.53,170.51,35.96]
[1748454674276,29.10680482,170.53,170.49,23.24273399]
[1748454674593,29.10680482,170.53,170.5,35.96]
[1748454675886,5.86407083,170.53,170.5,35.96]
[1748454676507,5.86407083,170.53,170.51,35.96]
[1748454678712,29.10680482,170.53,170.51,35.96]
[1748454681310,5.86303939,170.56,170.51,59.20273399]
[1748454681513,29.10577338,170.56,170.51,59.20273399]
[1748454681713,5.86303939,170.56,170.51,59.20273399]
[1748454682009,5.86200832,170.59,170.55,23.24273399]
[1748454682222,5.86200832,170.59,170.56,35.96]
[1748454683014,5.86200832,170.59,170.56,59.20273399]
[1748454684005,5.86200832,170.59,170.56,35.96]
[1748454686928,29.10474231,170.59,170.56,35.96]
[1748454689706,43.75976312,170.59,170.56,35.96]
[1748454689903,23.24273399,170.57,170.52,1.6396]
[1748454690122,23.24273399,170.55,170.53,35.94]
[1748454690828,23.24273399,170.56,170.53,35.94]
[1748454691311,23.24273399,170.57,170.53,35.94]
[1748454691511,112.74273399,170.58,170.53,59.18273399]
[1748454691730,112.74273399,170.58,170.54,23.24273399]
[1748454691938,5.86282244,170.57,170.54,23.24273399]
[1748454692241,95.36244021,170.58,170.55,23.24273399]
[1748454692533,95.36244021,170.58,170.56,35.94]
[1748454693239,5.86244021,170.58,170.56,35.94]
[1748454694115,5.86200832,170.59,170.56,35.94]
[1748454694306,95.36172081,170.6,170.56,59.18273399]
[1748454694509,89.5,170.6,170.59,23.24273399]
[1748454694766,89.5,170.6,170.59,59.18273399]
[1748454694923,89.5,170.6,170.59,35.94]
[1748454694924,95.36166471,170.6,170.59,35.94]
[1748454696228,118.6043987,170.6,170.55,26.0]
[1748454696418,23.24273399,170.58,170.56,35.94]
[1748454697134,110.01582649,170.6,170.56,35.94]
[1748454697135,23.24273399,170.59,170.56,35.94]
[1748454698119,118.6043987,170.6,170.56,35.94]
[1748454698719,23.24273399,170.59,170.56,35.94]
[1748454701146,5.86235197,170.58,170.56,35.94]
[1748454702518,5.86200832,170.59,170.56,35.94]
[1748454703245,29.10474231,170.59,170.56,35.94]
[1748454703645,5.86200832,170.59,170.55,49.24273399]
[1748454703846,5.86200832,170.59,170.57,35.94]
[1748454704856,5.86200832,170.59,170.55,49.24273399]
[1748454705155,5.86200832,170.59,170.51,18.64964886]
[1748454705156,23.24273399,170.57,170.53,35.94]
[1748454705320,23.24273399,170.57,170.54,35.94]
[1748454706864,5.86303939,170.56,170.54,35.94]
[1748454708053,5.86303939,170.56,170.52,23.24273399]
[1748454708257,5.86303939,170.56,170.54,35.94]
[1748454709162,5.86281144,170.57,170.54,59.18273399]
[1748454709773,0.14216157,170.6,170.55,23.24273399]
[1748454709953,23.24273399,170.6,170.56,23.24273399]
[1748454710163,23.24273399,170.6,170.57,35.94]
[1748454710618,5.86132114,170.61,170.57,35.94]
[1748454710819,5.86132114,170.61,170.58,23.24273399]
[1748454711351,5.86132114,170.61,170.57,59.18273399]
[1748454711923,29.10405513,170.61,170.57,35.94]
[1748454712346,23.24273399,170.59,170.57,35.94]
[1748454713249,5.86235197,170.58,170.57,35.94]
[1748454714451,5.86200832,170.59,170.57,35.94]
[1748454719246,23.24273399,170.62,170.58,23.24273399]
[1748454719458,29.1037116,170.62,170.58,23.24273399]
[1748454720561,29.1037116,170.62,170.57,59.18273399]
[1748454721228,29.1037116,170.62,170.58,23.24273399]
[1748454722228,29.1037116,170.62,170.57,59.18273399]
[1748454723666,29.1037116,170.62,170.58,23.24273399]
[1748454724366,95.36008096,170.65,170.61,23.24273399]
[1748454724564,10.9592,170.69,170.64,23.24273399]
[1748454724565,95.35925671,170.68,170.64,23.24273399]
[1748454724739,95.35925671,170.68,170.65,59.16273399]
[1748454725062,5.85823081,170.7,170.67,23.24273399]
[1748454725235,5.85823081,170.7,170.68,35.92]
[1748454725430,5.85823081,170.7,170.68,59.16273399]
[1748454726433,5.85823081,170.7,170.68,35.92]
[1748454727166,5.85788764,170.71,170.68,35.92]
[1748454727458,43.74534074,170.71,170.68,35.92]
[1748454727637,23.24273399,170.69,170.63,26.0]
[1748454727960,23.24273399,170.66,170.63,26.0]
[1748454728140,23.24273399,170.66,170.64,35.92]
[1748454728666,23.24273399,170.67,170.64,35.92]
[1748454729359,5.85960389,170.66,170.64,35.92]
[1748454729860,5.85960389,170.66,170.65,23.24273399]
[1748454730369,5.85960389,170.66,170.64,59.16273399]
[1748454731140,5.85960389,170.66,170.64,35.92]
[1748454731838,37.89050372,170.68,170.64,35.92]
[1748454732043,5.85926056,170.67,170.64,35.92]
[1748454735244,23.24273399,170.66,170.61,26.0]
[1748454735443,23.24273399,170.66,170.62,35.9]
[1748454736142,23.24273399,170.66,170.62,59.14273399]
[1748454736545,89.5,170.69,170.64,23.24273399]
[1748454736841,89.5,170.69,170.65,59.14273399]
[1748454736842,5.85891727,170.68,170.65,59.14273399]
[1748454737061,5.85891727,170.68,170.65,35.9]
[1748454738771,29.10165126,170.68,170.65,35.9]
[1748454745068,5.85891727,170.68,170.66,23.24273399]
[1748454745269,5.85870278,170.69,170.67,23.24273399]
[1748454745483,5.85870278,170.69,170.68,35.9]
[1748454746660,5.85823081,170.7,170.68,35.9]
[1748454747355,23.24273399,170.69,170.62,18.64964886]
[1748454747572,23.24273399,170.67,170.63,59.14273399]
[1748454747772,23.24273399,170.68,170.63,59.14273399]
[1748454748771,5.85926056,170.67,170.63,59.14273399]
[1748454749576,5.85926056,170.67,170.64,35.9]
[1748454750363,29.10199455,170.67,170.64,35.9]
[1748454750886,29.10199455,170.67,170.63,23.24273399]
[1748454751178,43.75014595,170.67,170.64,35.9]
[1748454751357,23.24273399,170.66,170.62,26.0]
[1748454751757,23.24273399,170.66,170.63,35.9]
[1748454752475,23.24273399,170.65,170.62,26.0]
[1748454752683,5.86063412,170.63,170.62,61.9]
[1748454752985,5.86063412,170.63,170.6,9.34]
[1748454753279,29.10336811,170.63,170.61,35.9]
[1748454753967,5.86063412,170.63,170.61,35.9]
[1748454760566,29.10302466,170.64,170.61,35.9]
[1748454761390,5.86029067,170.64,170.61,35.9]
[1748454761570,118.60280171,170.65,170.61,59.14273399]
[1748454761769,23.24273399,170.64,170.61,35.9]
[1748454762315,95.36006772,170.65,170.59,26.0]
[1748454762316,110.00993587,170.65,170.59,26.0]
[1748454762584,29.1043987,170.6,170.56,32.56273399]
[1748454762788,29.1043987,170.6,170.56,9.32]
[1748454762789,23.24273399,170.59,170.56,9.32]
[1748454762957,5.86166471,170.6,170.57,35.9]
[1748454762958,29.1043987,170.6,170.57,35.9]
[1748454763989,29.1043987,170.6,170.58,35.9]
[1748454764366,5.86166471,170.6,170.58,35.9]
[1748454765268,5.86166471,170.6,170.56,58.56273399]
[1748454765467,5.86166471,170.6,170.57,35.9]
[1748454768294,23.24273399,170.6,170.57,35.9]
[1748454770506,5.86200832,170.59,170.57,35.9]
[1748454772308,29.1045368,170.6,170.57,35.9]
[1748454772495,5.86180281,170.6,170.57,59.14273399]
[1748454772694,5.86097761,170.62,170.59,23.24273399]
[1748454772907,95.36075417,170.63,170.6,59.14273399]
[1748454773110,5.86075417,170.63,170.6,59.14273399]
[1748454773415,5.86041601,170.64,170.6,59.14273399]
[1748454773717,14.64888207,170.67,170.6,59.14273399]
[1748454773718,29.10199455,170.67,170.63,23.24273399]
[1748454773869,29.10199455,170.67,170.64,35.9]
[1748454774468,5.85926056,170.67,170.64,35.9]
[1748454775196,95.3589603,170.68,170.64,59.14273399]
[1748454775517,95.3589603,170.68,170.65,23.24273399]
[1748454775690,118.60169429,170.68,170.64,59.14273399]
[1748454775889,95.3589603,170.68,170.64,59.14273399]
[1748454776699,95.3589603,170.68,170.65,23.24273399]
[1748454776874,89.5,170.68,170.65,23.24273399]
[1748454778000,89.5,170.68,170.66,23.24273399]